fUST/lending_fUST_20251014
["ID","MTS","AMOUNT","RATE_DAILY","PERIOD"]
[391256210,1760441445956,-155.0,0.00029443,2]
[391256211,1760441445969,-184817.82381005,0.00029444,2]
[391256212,1760441446040,-327584.08568995,0.00029444,2]
[391256213,1760441446049,-981.617296,0.00029444,30]
[391256214,1760441446059,-981.617296,0.00029444,30]
[391256215,1760441446068,-981.617296,0.00029444,30]
[391256216,1760441446078,-981.617296,0.00029444,30]
[391256217,1760441446087,-151.0,0.00029444,30]
[391256218,1760441446097,-151.0,0.00029444,30]
[391256219,1760441446106,-777.816551,0.00029444,30]
[391256220,1760441446115,-777.816551,0.00029444,30]
[391256221,1760441446124,-777.816551,0.00029444,30]
[391256222,1760441446134,-777.816556,0.00029444,30]
[391256223,1760441446143,-500.0,0.0002946,5]
[391256224,1760441446152,-600.0,0.00029493,2]
[391256225,1760441446161,-1503.95,0.00029498,15]
[391256226,1760441446170,-95000.0,0.0002956,2]
[391256227,1760441446179,-1503.95,0.00029598,15]
[391256228,1760441446188,-154.904952,0.000296,3]
[391256229,1760441446196,-157.955985,0.000296,3]
[391256230,1760441446205,-1500.0,0.000296,2]
[391256231,1760441446215,-1123927.80962465,0.00029601,4]
[391256232,1760441446243,-528.89051107,0.00019178,2]
[391256233,1760441446285,-197.11288194,0.00018977,2]
[391256234,1760441446295,-10640.7389773,0.00019178,2]
[391256235,1760441446306,-2653.0,0.00019178,2]
[391256236,1760441446329,-1995.860843,0.00019178,2]
[391256241,1760441497742,-591.07917768,0.00018878,2]
[391256242,1760441497820,-10000.01,0.00018878,2]
[391256243,1760441498913,-871.8,0.00018868,3]
[391256244,1760441498948,-8256.41,0.00018878,2]
[391256245,1760441499014,-10000.01,0.00018878,2]
[391256246,1760441499123,-10000.01,0.00018878,2]
[391256247,1760441499239,-10000.01,0.00018878,2]
[391256248,1760441499365,-10000.01,0.00018878,2]
[391256249,1760441499478,-10000.01,0.00018878,2]
[391256250,1760441499676,-10000.01,0.00018878,2]
[391256251,1760441499786,-10000.01,0.00018878,2]
[391256252,1760441499888,-10000.01,0.00018878,2]
[391256253,1760441503915,-10000.01,0.00018878,2]
[391256254,1760441508079,-10000.01,0.00018878,2]
[391256255,1760441508282,-10000.01,0.00018878,2]
[391256256,1760441508401,-10000.01,0.00018878,2]
[391256257,1760441508515,-10000.01,0.00018878,2]
[391256258,1760441508628,-10000.01,0.00018878,2]
[391256259,1760441508761,-435.9,0.00018868,3]
[391256260,1760441508796,-9128.21,0.00018878,2]
[391256261,1760441508901,-10000.01,0.00018878,2]
[391256262,1760441509007,-10000.01,0.00018878,2]
[391256263,1760441509103,-10000.01,0.00018878,2]
[391256264,1760441509952,-10000.01,0.00018878,2]
[391256265,1760441511970,-10000.01,0.00018878,2]
[391256266,1760441512090,-10000.01,0.00018878,2]
[391256267,1760441512192,-10000.01,0.00018878,2]
[391256268,1760441512308,-10000.01,0.00018878,2]
[391256269,1760441512425,-10000.01,0.00018878,2]
[391256270,1760441512551,-10000.01,0.00018878,2]
[391256271,1760441512697,-10000.01,0.00018878,2]
[391256272,1760441512871,-10000.01,0.00018878,2]
[391256273,1760441513004,-10000.01,0.00018878,2]
[391256274,1760441514192,-10000.01,0.00018878,2]
[391256275,1760441516004,-10000.01,0.00018878,2]
[391256276,1760441516117,-10000.01,0.00018878,2]
[391256277,1760441516418,-5000.0,0.00018689,2]
[391256278,1760441516457,-0.01,0.00018878,2]
[391256279,1760441516527,-10000.01,0.00018878,2]
[391256280,1760441516654,-10000.01,0.00018878,2]
[391256281,1760441516771,-10000.01,0.00018878,2]
[391256282,1760441516917,-10000.01,0.00018878,2]
[391256283,1760441517035,-2023.94082232,0.00018878,2]
[391256284,1760441524845,510.43203669,0.00018904,2]
[391256285,1760441540353,5000.0,0.00018904,2]
[391256286,1760441553203,441.69631867,0.000189,2]
[391256287,1760441553226,1043.12361843,0.000189,2]
[391256288,1760441563830,2232.20653581,0.00018904,2]
[391256289,1760441663308,6724.67984576,0.00018878,2]
[391256290,1760441663330,10000.01,0.00018878,2]
[391256291,1760441663352,10000.01,0.00018878,2]
[391256292,1760441663374,10000.01,0.00018878,2]
[391256293,1760441663396,10000.01,0.00018878,2]
[391256294,1760441663417,10000.01,0.00018878,2]
[391256295,1760441663443,10000.01,0.00018878,2]
[391256296,1760441663465,10000.01,0.00018878,2]
[391256297,1760441663488,10000.01,0.00018878,2]
[391256298,1760441663510,10000.01,0.00018878,2]
[391256300,1760441672227,-179.23729762,0.00018877,2]
[391256301,1760441674260,-901.213171,0.00018269,2]
[391256302,1760441674291,-1642.44560013,0.00018689,2]
[391256303,1760441674317,-183.22605,0.00018877,2]
[391256304,1760441674344,-500.0,0.00018877,2]
[391256305,1760441674371,-500.0,0.00018877,2]
[391256306,1760441674399,-500.0,0.00018877,2]
[391256307,1760441674431,-500.0,0.00018877,2]
[391256308,1760441674458,-46.24035774,0.00018877,2]
[391256309,1760441674578,-453.75964226,0.00018877,2]
[391256310,1760441674606,-500.0,0.00018877,2]
[391256311,1760441674638,-500.0,0.00018877,2]
[391256312,1760441674665,-500.0,0.00018877,2]
[391256313,1760441674694,-500.0,0.00018877,2]
[391256314,1760441674724,-500.0,0.00018877,2]
[391256315,1760441674752,-500.0,0.00018877,2]
[391256316,1760441674779,-500.0,0.00018877,2]
[391256317,1760441674809,-500.0,0.00018877,2]
[391256318,1760441674836,-500.0,0.00018877,2]
[391256319,1760441674907,-500.0,0.00018877,2]
[391256320,1760441674937,-500.0,0.00018877,2]
[391256321,1760441674966,-500.0,0.00018877,2]
[391256322,1760441674994,-500.0,0.00018877,2]
[391256323,1760441675023,-500.0,0.00018877,2]
[391256324,1760441675049,-500.0,0.00018877,2]
[391256325,1760441675076,-500.0,0.00018877,2]
[391256326,1760441675104,-500.0,0.00018877,2]
[391256327,1760441675129,-500.0,0.00018877,2]
[391256328,1760441675156,-500.0,0.00018877,2]
[391256329,1760441675365,-154.3033174,0.00018877,2]
[391256330,1760441675391,-500.0,0.00018877,2]
[391256331,1760441675421,-500.0,0.00018877,2]
[391256332,1760441675449,-500.0,0.00018877,2]
[391256333,1760441675476,-583.91342934,0.00018877,2]
[391256334,1760441675505,-500.0,0.00018877,2]
[391256335,1760441675534,-455.27631496,0.00018877,2]
[391256336,1760441675562,-386.17243055,0.00018877,2]
[391256337,1760441675592,-500.0,0.00018877,2]
[391256338,1760441676129,-6145.199638,0.00018878,2]
[391256339,1760441676143,-10000.01,0.00018878,2]
[391256340,1760441676252,-10000.01,0.00018878,2]
[391256341,1760441676266,-10000.01,0.00018878,2]
[391256342,1760441676281,-10000.01,0.00018878,2]
[391256343,1760441676336,-10000.01,0.00018878,2]
[391256344,1760441676472,-10000.01,0.00018878,2]
[391256345,1760441676598,-10000.01,0.00018878,2]
[391256346,1760441676747,-10000.01,0.00018878,2]
[391256347,1760441676871,-10000.01,0.00018878,2]
[391256348,1760441677025,-10000.01,0.00018878,2]
[391256349,1760441684316,-1939.10757574,0.00018689,2]
[391256350,1760441684349,-6121.79484852,0.00018878,2]
[391256351,1760441684439,-10000.01,0.00018878,2]
[391256352,1760441684568,-10000.01,0.00018878,2]
[391256353,1760441684685,-10000.01,0.00018878,2]
[391256354,1760441684809,-10000.01,0.00018878,2]
[391256355,1760441684921,-10000.01,0.00018878,2]
[391256356,1760441685041,-10000.01,0.00018878,2]
[391256357,1760441685343,-10000.01,0.00018878,2]
[391256358,1760441685450,-10000.01,0.00018878,2]
[391256359,1760441685559,-10000.01,0.00018878,2]
[391256360,1760441695406,-10000.01,0.00018878,2]
[391256361,1760441695471,-10000.01,0.00018878,2]
[391256362,1760441695602,-10000.01,0.00018878,2]
[391256363,1760441695706,-10000.01,0.00018878,2]
[391256364,1760441695800,-10000.01,0.00018878,2]
[391256365,1760441695919,-10000.01,0.00018878,2]
[391256366,1760441696049,-10000.01,0.00018878,2]
[391256367,1760441696175,-1007.97566772,0.00018878,2]
[391256368,1760441697001,5000.0,0.00018689,2]
[391256369,1760441704908,2984.05866456,0.00018904,2]
[391256370,1760441704932,2015.94133544,0.00018904,2]
[391256371,1760441713060,2226.17850983,0.00018904,2]
[391256372,1760441720986,5000.0,0.00018904,2]
[391256373,1760441725571,300.0,0.000189,2]
[391256374,1760441729881,457.89015473,0.00018904,2]
[391256375,1760441729903,4542.10984527,0.00018904,2]
[391256376,1760441735288,500.0,0.00018877,2]
[391256377,1760441735601,500.0,0.00018877,2]
[391256378,1760441735966,500.0,0.00018877,2]
[391256379,1760441736340,500.0,0.00018877,2]
[391256380,1760441736652,300.0,0.000189,2]
[391256381,1760441736689,500.0,0.00018877,2]
[391256382,1760441736996,500.0,0.00018877,2]
[391256383,1760441737024,500.0,0.00018877,2]
[391256384,1760441737050,500.0,0.00018877,2]
[391256385,1760441737078,500.0,0.00018877,2]
[391256386,1760441737111,552.39854702,0.00018877,2]
[391256387,1760441745416,105.50160771,0.00018904,2]
[391256388,1760441745440,1214.07911097,0.00018904,2]
[391256389,1760441745924,-151.02389613,0.00018973,2]
[391256390,1760441748295,300.0,0.000189,2]
[391256391,1760441750265,167.17540248,0.00018873,2]
[391256393,1760441759450,300.0,0.000189,2]
[391256395,1760441862101,1568.17314652,0.00019,30]
[391256396,1760441886385,4384.0,0.00018904,2]
[391256397,1760441954232,2068.22925344,0.0003037,120]
[391256401,1760442009019,151.0,0.00017,2]
[391256410,1760442111054,-355.05181889,0.00018877,2]
[391256454,1760442311737,167.7347334,9.039e-05,2]
[391256457,1760442345954,-167.93338945,0.00018973,2]
[391256458,1760442345974,-97.92763071,0.00018973,2]
[391256459,1760442349090,-151.0,0.00018973,2]
[391256460,1760442352146,-201.09266393,0.00018973,2]
[391256461,1760442354031,-49.97970536,0.00018973,2]
[391256462,1760442354053,-101.02029464,0.00018973,2]
[391256463,1760442355968,-151.0,0.00018973,2]
[391256464,1760442358452,-174.61525999,0.00018973,2]
[391256465,1760442361535,-73.36444537,0.00018973,2]
[391256466,1760442361557,-184.12871426,0.00018977,2]
[391256467,1760442363477,-151.0,0.00018976,2]
[391256468,1760442366493,-149.0,0.00018976,2]
[391256469,1760442366516,-129.38474001,0.00018977,2]
[391256471,1760442370418,-157.39421608,0.00018977,2]
[391256472,1760442373804,-159.06009842,0.00018977,2]
[391256474,1760442390638,-8.51462325,0.00018977,2]
[391256475,1760442390666,-201.09418565,0.00018977,2]
[391256477,1760442394828,-262.16704335,0.00018977,2]
[391256480,1760442525906,-151.0,0.00018976,2]
[391256481,1760442527926,-149.0,0.00018976,2]
[391256482,1760442527946,-29.179535,0.00018977,2]
[391256536,1760442631983,-302.45563732,0.000189,2]
[391256537,1760442631993,-151.0,0.00018966,2]
[391256538,1760442632003,-151.0,0.00018966,2]
[391256539,1760442632014,-151.0,0.00018966,2]
[391256540,1760442632023,-151.0,0.00018966,2]
[391256541,1760442632032,-151.0,0.00018966,2]
[391256542,1760442632042,-151.0,0.00018966,2]
[391256543,1760442632051,-151.0,0.00018966,2]
[391256544,1760442632060,-151.0,0.00018966,2]
[391256545,1760442632069,-151.0,0.00018966,2]
[391256546,1760442632078,-151.0,0.00018966,2]
[391256547,1760442632087,-151.0,0.00018966,2]
[391256548,1760442632097,-151.0,0.00018966,2]
[391256549,1760442632107,-151.0,0.00018966,2]
[391256550,1760442632116,-151.0,0.00018966,2]
[391256551,1760442632125,-151.0,0.00018966,2]
[391256552,1760442632134,-68.17832183,0.00018966,2]
[391256567,1760442637791,-93.90237139,0.00018966,2]
[391256568,1760442637802,-300.0,0.00018976,2]
[391256569,1760442637812,-1000.0,0.00018977,2]
[391256570,1760442637821,-1136.11,0.00018977,2]
[391256571,1760442637830,-1136.11,0.00018977,2]
[391256572,1760442637840,-1136.11,0.00018977,2]
[391256573,1760442637849,-1136.11,0.00018977,2]
[391256574,1760442637858,-1136.11,0.00018977,2]
[391256575,1760442637867,-1136.11,0.00018977,2]
[391256576,1760442637876,-1136.11,0.00018977,2]
[391256577,1760442637885,-1136.11,0.00018977,2]
[391256578,1760442637894,-1136.11,0.00018977,2]
[391256579,1760442637903,-1136.11,0.00018977,2]
[391256580,1760442637912,-310.67034152,0.00019078,2]
[391256581,1760442637922,-1136.11,0.00019172,2]
[391256582,1760442637931,-1136.11,0.00019172,2]
[391256583,1760442637940,-1136.11,0.00019177,2]
[391256584,1760442637950,-1136.11,0.00019177,2]
[391256585,1760442637959,-1136.11,0.00019177,2]
[391256586,1760442637968,-500.0,0.00019178,2]
[391256587,1760442637978,-639.63,0.00019178,2]
[391256588,1760442637987,-500.0,0.00019178,2]
[391256589,1760442637996,-500.0,0.00019178,2]
[391256590,1760442638005,-226.37910282,0.00019178,2]
[391256591,1760442638017,-273.62089718,0.00019178,2]
[391256592,1760442638026,-500.0,0.00019178,2]
[391256593,1760442638036,-500.0,0.00019178,2]
[391256594,1760442638046,-500.0,0.00019178,2]
[391256595,1760442638055,-500.0,0.00019178,2]
[391256596,1760442638064,-500.0,0.00019178,2]
[391256597,1760442638074,-500.0,0.00019178,2]
[391256598,1760442638083,-500.0,0.00019178,2]
[391256599,1760442638092,-473.3855405,0.00019178,2]
[391256600,1760442638103,-26.6144595,0.00019178,2]
[391256601,1760442638112,-500.0,0.00019178,2]
[391256602,1760442638122,-437.23884564,0.00019178,2]
[391256603,1760442638133,-62.76115436,0.00019178,2]
[391256604,1760442638143,-500.0,0.00019178,2]
[391256605,1760442638152,-441.14084665,0.00019178,2]
[391256606,1760442638163,-58.85915335,0.00019178,2]
[391256607,1760442638173,-500.0,0.00019178,2]
[391256608,1760442638183,-500.0,0.00019178,2]
[391256609,1760442638192,-500.0,0.00019178,2]
[391256610,1760442638202,-500.0,0.00019178,2]
[391256611,1760442638212,-500.0,0.00019178,2]
[391256612,1760442638221,-500.0,0.00019178,2]
[391256613,1760442638231,-500.0,0.00019178,2]
[391256614,1760442638240,-500.0,0.00019178,2]
[391256615,1760442638249,-496.30872842,0.00019178,2]
[391256616,1760442638260,-500.0,0.00019325,2]
[391256617,1760442638269,-500.0,0.00019325,2]
[391256618,1760442638278,-500.0,0.00019364,2]
[391256619,1760442638288,-1000.0,0.00019521,2]
[391256620,1760442638298,-1000.0,0.00019521,2]
[391256621,1760442638307,-300.0,0.00019561,2]
[391256622,1760442638316,-300.0,0.00019561,2]
[391256623,1760442638326,-300.0,0.00019561,2]
[391256624,1760442638336,-300.0,0.00019561,2]
[391256625,1760442638345,-300.0,0.00019561,2]
[391256626,1760442638355,-300.0,0.00019561,2]
[391256627,1760442638364,-300.0,0.00019561,2]
[391256628,1760442638374,-300.0,0.00019561,2]
[391256629,1760442638383,-300.0,0.00019561,2]
[391256630,1760442638393,-300.0,0.00019561,2]
[391256631,1760442638403,-300.0,0.00019561,2]
[391256632,1760442638412,-300.0,0.00019561,2]
[391256633,1760442638422,-300.0,0.00019561,2]
[391256634,1760442638441,-300.0,0.00019561,2]
[391256635,1760442638453,-300.0,0.00019561,2]
[391256636,1760442638463,-445.32232382,0.00019561,2]
[391256637,1760442638473,-192.71092992,0.00019577,2]
[391256638,1760442638483,-500.0,0.00019695,2]
[391256639,1760442638493,-1136.11,0.0001972,2]
[391256640,1760442638503,-1781.28929528,0.00019812,2]
[391256641,1760442638512,-542.27752401,0.00019873,2]
[391256642,1760442638523,-630.46605884,0.00019873,2]
[391256643,1760442638532,-1000.0,0.00019912,2]
[391256644,1760442638542,-600.0,0.00019951,2]
[391256645,1760442638552,-1500.0,0.00020068,2]
[391256646,1760442638562,-1008.96171624,0.00020068,2]
[391256647,1760442638571,-372.10225396,0.0002015,2]
[391256648,1760442638581,-500.0,0.0002015,2]
[391256649,1760442638591,-500.0,0.0002015,2]
[391256650,1760442638600,-217.84713817,0.00020177,2]
[391256651,1760442638610,-429.6921645,0.00020243,2]
[391256652,1760442638620,-1136.11,0.00020268,2]
[391256653,1760442638629,-1000.0,0.00020347,2]
[391256654,1760442638639,-1500.0,0.0002046,2]
[391256655,1760442638649,-870.97383211,0.00020616,2]
[391256656,1760442638659,-310.6703415,0.00020677,2]
[391256657,1760442638669,-420.0,0.00020684,2]
[391256658,1760442638678,-628.75467039,0.00020697,2]
[391256659,1760442638688,-239.36703527,0.00020697,2]
[391256660,1760442638698,-487.35249228,0.00020697,2]
[391256661,1760442638708,-500.0,0.00020697,2]
[391256662,1760442638723,-459.5902196,0.00020697,2]
[391256663,1760442638732,-484.86286373,0.00020698,2]
[391256664,1760442638743,-503.09828403,0.00020698,2]
[391256665,1760442638752,-242.98334642,0.00020777,2]
[391256666,1760442638763,-4003.89301346,0.00020892,2]
[391256667,1760442638773,-1136.11,0.00020968,2]
[391256668,1760442638783,-1136.11,0.00020989,2]
[391256669,1760442638795,-2000.0,0.00021007,2]
[391256670,1760442638805,-1136.11,0.00021364,2]
[391256671,1760442638815,-1136.11,0.00021364,2]
[391256672,1760442638826,-1136.11,0.00021364,2]
[391256673,1760442638836,-1136.11,0.00021364,2]
[391256674,1760442638846,-1136.15796222,0.00021364,2]
[391256675,1760442638856,-268.11955466,0.00021377,2]
[391256676,1760442638866,-2500.0,0.00021555,2]
[391256677,1760442638876,-704.38860904,0.00021717,2]
[391256678,1760442638885,-511.44122755,0.00021917,2]
[391256679,1760442638895,-720.0,0.00021946,20]
[391256680,1760442638906,-240.37433983,0.00021973,6]
[391256681,1760442638915,-293.25576291,0.00021977,2]
[391256682,1760442638927,-2264.71,0.0002203,2]
[391256683,1760442638937,-1500.0,0.00022103,2]
[391256684,1760442638948,-310.6703415,0.00022276,2]
[391256685,1760442638958,-587.0,0.00022546,2]
[391256686,1760442638968,-318.39197116,0.00022577,2]
[391256687,1760442638978,-1862.17775161,0.00022673,2]
[391256688,1760442638988,-857.57169332,0.00022673,2]
[391256689,1760442638999,-9494.16,0.00022711,10]
[391256690,1760442639008,-795.52,0.00022721,3]
[391256691,1760442639019,-397.76,0.00022721,3]
[391256692,1760442639029,-198.88,0.00022721,3]
[391256693,1760442639040,-596.66,0.00022721,3]
[391256694,1760442639051,-402.43064913,0.00022721,10]
[391256695,1760442639061,-11392.99,0.00022721,10]
[391256696,1760442639071,-370000.0,0.00022731,2]
[391256697,1760442639080,-500.0,0.00022773,2]
[391256698,1760442639089,-501.21425316,0.00022773,2]
[391256699,1760442639099,-500.46309833,0.00022773,2]
[391256700,1760442639109,-500.23894583,0.00022773,2]
[391256701,1760442639118,-634.87926624,0.00022773,2]
[391256702,1760442639129,-500.0,0.00022773,2]
[391256703,1760442639139,-500.0,0.00022773,2]
[391256704,1760442639148,-160.0,0.00023,2]
[391256705,1760442639158,-188.0,0.00023068,9]
[391256706,1760442639168,-343.52817941,0.00023177,2]
[391256707,1760442639180,-8397.0,0.00023254,2]
[391256708,1760442639189,-984.342,0.00023254,2]
[391256709,1760442639198,-631.0,0.00023254,2]
[391256710,1760442639207,-2169.039,0.00023254,2]
[391256711,1760442639216,-508.02299742,0.00023321,2]
[391256712,1760442639226,-1000.0,0.00023321,2]
[391256713,1760442639236,-1000.0,0.00023321,2]
[391256714,1760442639246,-239.77,0.0002351,2]
[391256715,1760442639255,-368.66438766,0.00023777,2]
[391256716,1760442639265,-1500.0,0.00023868,2]
[391256717,1760442639275,-440.50785904,0.00023868,2]
[391256718,1760442639284,-310.6703415,0.00023875,2]
[391256719,1760442639294,-302.29792128,0.00023953,2]
[391256720,1760442639304,-4529.41,0.00024032,2]
[391256721,1760442639313,-1591.04,0.00024091,3]
[391256722,1760442639322,-795.52,0.00024091,3]
[391256723,1760442639332,-397.76,0.00024091,3]
[391256724,1760442639341,-200.0,0.000241,7]
[391256725,1760442639350,-864.0,0.00024141,20]
[391256726,1760442639360,-189.0,0.00024164,12]
[391256727,1760442639369,-1000.0,0.00024247,2]
[391256728,1760442639378,-1000.0,0.00024247,2]
[391256729,1760442639387,-1000.0,0.00024247,2]
[391256730,1760442639396,-1000.0,0.00024247,2]
[391256731,1760442639406,-1000.0,0.00024247,2]
[391256732,1760442639415,-1000.0,0.00024247,2]
[391256733,1760442639424,-1000.0,0.00024247,2]
[391256734,1760442639433,-18603.8837,0.00024247,2]
[391256735,1760442639442,-250.0,0.00024247,2]
[391256736,1760442639451,-250.0,0.00024247,2]
[391256737,1760442639461,-250.0,0.00024247,2]
[391256738,1760442639470,-250.0,0.00024247,2]
[391256739,1760442639479,-250.0,0.00024247,2]
[391256740,1760442639488,-250.0,0.00024247,2]
[391256741,1760442639497,-250.0,0.00024247,2]
[391256742,1760442639507,-250.0,0.00024247,2]
[391256743,1760442639516,-250.0,0.00024247,2]
[391256744,1760442639526,-250.0,0.00024247,2]
[391256745,1760442639535,-250.0,0.00024247,2]
[391256746,1760442639544,-250.0,0.00024247,2]
[391256747,1760442639554,-250.0,0.00024247,2]
[391256749,1760442639563,-250.0,0.00024247,2]
[391256751,1760442639572,-250.0,0.00024247,2]
[391256752,1760442639581,-250.0,0.00024247,2]
[391256753,1760442639590,-250.0,0.00024247,2]
[391256754,1760442639599,-250.0,0.00024247,2]
[391256755,1760442639610,-5888.0,0.00024264,2]
[391256756,1760442639620,-160.0,0.00024296,2]
[391256757,1760442639630,-160.0,0.00024296,2]
[391256758,1760442639639,-402.43064913,0.00024297,2]
[391256759,1760442639649,-220.69316244,0.000243,2]
[391256760,1760442639658,-194.63276302,0.000243,2]
[391256761,1760442639667,-160.0,0.00024311,2]
[391256762,1760442639676,-393.80059591,0.00024377,2]
[391256763,1760442639686,-1500.0,0.00024416,2]
[391256764,1760442639695,-5888.0,0.00024418,2]
[391256765,1760442639704,-857.5716933,0.00024424,2]
[391256766,1760442639714,-823.0,0.00024576,2]
[391256767,1760442639730,-220.69316244,0.000246,2]
[391256768,1760442639740,-380.0,0.00024658,2]
[391256769,1760442639749,-19292.2273969,0.00024795,2]
[391256770,1760442639758,-220.69316244,0.000248,2]
[391256771,1760442639770,-177.6001918,0.000248,2]
[391256772,1760442639780,-500.0,0.00024873,2]
[391256773,1760442639790,-500.0,0.00024873,2]
[391256774,1760442639800,-500.0,0.00024873,2]
[391256775,1760442639809,-500.0,0.00024873,2]
[391256776,1760442639819,-501.51297254,0.00024873,2]
[391256777,1760442639828,-421.72081318,0.00024873,2]
[391256778,1760442639839,-500.0,0.00024873,2]
[391256779,1760442639848,-500.81563909,0.00024873,2]
[391256780,1760442639858,-29235.94,0.000249,7]
[391256781,1760442639868,-402.43064913,0.000249,7]
[391256782,1760442639877,-439305.196092,0.000249,2]
[391256783,1760442639886,-247.947,0.00024903,8]
[391256784,1760442639895,-418.93680416,0.00024977,2]
[391256785,1760442639905,-777.00822017,0.00025,55]
[391256786,1760442639914,-220.69316244,0.000251,2]
[391256787,1760442639923,-200.0,0.000251,7]
[391256788,1760442639933,-209.11706005,0.00025205,7]
[391256789,1760442639942,-190.0,0.0002526,16]
[391256790,1760442639952,-220.69316244,0.000253,2]
[391256791,1760442639962,-5622.85956247,0.00025343,2]
[391256792,1760442639971,-310.6703415,0.00025473,2]
[391256793,1760442639980,-444.07301241,0.00025577,2]
[391256794,1760442639990,-5888.0,0.00025693,2]
[391256795,1760442639999,-5888.0,0.00025773,2]
[391256796,1760442640009,-5888.0,0.00025949,2]
[391256797,1760442640020,-5888.0,0.00025982,7]
[391256798,1760442640030,-6531.79,0.00026027,2]
[391256799,1760442640039,-6794.12,0.00026035,2]
[391256800,1760442640048,-200.0,0.000261,7]
[391256801,1760442640058,-857.5716933,0.00026175,2]
[391256802,1760442640067,-469.20922066,0.00026177,2]
[391256803,1760442640077,-981.0,0.00026254,2]
[391256804,1760442640086,-631.0,0.00026254,2]
[391256805,1760442640095,-2161.0,0.00026254,2]
[391256806,1760442640105,-1862.17775161,0.00026322,2]
[391256807,1760442640114,-192.0,0.00026356,20]
[391256808,1760442640123,-1000.0,0.00026555,30]
[391256809,1760442640132,-494.34542891,0.00026777,2]
[391256810,1760442640142,-1152.0,0.00026789,2]
[391256811,1760442640151,-29235.94,0.00027,7]
[391256812,1760442640161,-402.43064913,0.00027,7]
[391256813,1760442640172,-200.0,0.000271,7]
[391256814,1760442640182,-885.0,0.00027182,2]
[391256815,1760442640192,-885.0,0.00027254,2]
[391256816,1760442640203,-885.0,0.00027336,2]
[391256817,1760442640212,-519.48163716,0.00027377,2]
[391256818,1760442640222,-6531.79,0.00027397,4]
[391256819,1760442640231,-200.3671795,0.00027397,5]
[391256820,1760442640241,-3069.7,0.000274,2]
[391256821,1760442640250,-6337.4,0.000274,2]
[391256822,1760442640260,-901.213171,0.00027404,2]
[391256823,1760442640270,-234.0,0.00027452,24]
[391256824,1760442640279,-885.0,0.00027667,2]
[391256825,1760442640288,-885.0,0.00027754,2]
[391256827,1760442640298,-885.0,0.00027811,7]
[391256828,1760442640307,-618.1339211,0.00027853,5]
[391256829,1760442640315,-857.5716933,0.00027926,2]
[391256830,1760442640325,-544.61784541,0.00027977,2]
[391256832,1760442640334,-265.25734317,0.00028,10]
[391256833,1760442640344,-885.0,0.00028038,2]
[391256834,1760442640353,-9058.83,0.00028038,2]
[391256835,1760442640364,-885.0,0.00028161,2]
[391256836,1760442640374,-885.0,0.00028225,2]
[391256837,1760442640383,-900.0,0.0002827,7]
[391256838,1760442640393,-885.0,0.00028396,2]
[391256839,1760442640402,-205.0,0.00028548,29]
[391256840,1760442640411,-569.75405366,0.00028577,2]
[391256841,1760442640420,-885.0,0.00028659,2]
[391256842,1760442640429,-885.0,0.00028736,2]
[391256843,1760442640439,-6531.79,0.00028767,6]
[391256844,1760442640449,-6337.4,0.000288,2]
[391256845,1760442640458,-890.0,0.00028831,7]
[391256846,1760442640467,-890.0,0.0002886,2]
[391256847,1760442640479,-885.0,0.00028992,2]
[391256859,1760442640595,-1071.91,0.00029,2]